[Event "POR-chT 1st League 2017"]
[Site "Leiria"]
[Date "2017.07.19"]
[Round "4"]
[White "Carneiro, Carlos"]
[Black "Tubio Agrasar, Pablo"]
[Result "1/2-1/2"]
[ECO "A64"]
[WhiteElo "2175"]
[BlackElo "1988"]
[Annotator "NA"]
[PlyCount "108"]
[EventDate "2017.??.??"]
[EventType "team-tourn"]
[EventCountry "POR"]
[SourceTitle "playchess.com"]
[Source "ChessBase"]
[SourceQuality "1"]
[TimeControl "5400+30"]

1. d4 {[%emt 0:00:21]} Nf6 {[%emt 0:00:10]} 2. c4 {[%emt 0:00:08]} c5 {[%emt 0:00:41]} 3. d5 {[%emt 0:00:06]} e6 {[%emt 0:00:08]} 4. Nc3 {[%emt 0:00:09]} exd5 {[%emt 0:00:14]} 5. cxd5 {[%emt 0:00:06]} d6 {[%emt 0:00:14]} 6. Nf3 {[%emt 0:01:14]} g6 {[%emt 0:00:11]} 7. g3 {[%emt 0:01:00]} Bg7 {[%emt 0:00:07]} 8. Bg2 {[%emt 0:00:07]} O-O {[%emt 0:00:06]} 9. O-O {[%emt 0:00:06]} a6 {[%emt 0:00:35]} 10. a4 {[%emt 0:00:17]} Re8 {[%emt 0:00:06]} 11. Nd2 {[%emt 0:00:30]} Nbd7 {[%emt 0:00:49]} 12. h3 {[%emt 0:06:48]} Rb8 {[%emt 0:01:25]} 13. Nc4 {[%emt 0:01:14]} Nb6 {[%emt 0:00:22]} 14. Nxb6 {[%emt 0:07:44]} Qxb6 {[%emt 0:00:07]} 15. a5 {[%emt 0:00:22]} Qc7 {[%emt 0:00:17]} 16. e4 {[%emt 0:00:15]} b5 {[%emt 0:03:06]} 17. axb6 {[%emt 0:01:10]} Rxb6 {[%emt 0:00:02]} 18. Qa4 {[%emt 0:07:44]} Rb4 {[%emt 0:06:12]} 19. Qa5 {[%emt 0:00:57]} Qxa5 {[%emt 0:01:53]} 20. Rxa5 {[%emt 0:00:06]} Nd7 {[%emt 0:00:51]} 21. Na4 {[%emt 0:13:51]} Ne5 {[%emt 0:02:58]} 22. Nc3 {[%emt 0:07:56]} Nd3 {[%emt 0:07:43]} 23. Ra2 {[%emt 0:00:12]} Bd4 {[%emt 0:04:23]} 24. g4 {[%emt 0:03:10]} h5 {[%emt 0:14:32]} 25. Bf3 {[%emt 0:00:25]} Ne5 {[%emt 0:00:20]} 26. Kg2 {[%emt 0:00:45]} hxg4 {[%emt 0:10:26]} 27. hxg4 {[%emt 0:01:36]} Nxf3 {[%emt 0:14:05]} 28. Kxf3 {[%emt 0:00:04]} Bxc3 {[%emt 0:01:12]} 29. bxc3 {[%emt 0:00:03]} Rbxe4 {[%emt 0:00:17]} 30. Bf4 {[%emt 0:00:54]} Rc4 {[%emt 0:04:25]} 31. Ra3 {[%emt 0:04:44]} Bxg4+ {[%emt 0:04:02]} 32. Kg3 {[%emt 0:15:20]} g5 {[%emt 0:10:15]} 33. Kxg4 {[%emt 0:09:03]} Re5 {[%emt 0:00:25]} 34. Rd1 {[%emt 0:02:03]} Rxf4+ {[%emt 0:00:33]} 35. Kg3 {[%emt 0:00:05]} Re2 {[%emt 0:06:18]} 36. Rxa6 {[%emt 0:00:42]} Rf6 {[%emt 0:00:12]} 37. Rd3 {[%emt 0:03:24]} Rexf2 {[%emt 0:00:23]} 38. Rxd6 {[%emt 0:03:00]} Rxd6 {[%emt 0:01:28]} 39. Kxf2 {[%emt 0:00:02]} Kg7 {[%emt 0:00:39]} 40. c4 {[%emt 0:00:52]} f5 {[%emt 0:00:16]} 41. Ra3 {[%emt 0:00:11]} Kf6 {[%emt 0:00:35]} 42. Ra5 {[%emt 0:00:15]} Ke5 {[%emt 0:02:28]} 43. Rxc5 {[%emt 0:00:06]} Kf4 {[%emt 0:00:03]} 44. Rc6 {[%emt 0:00:38]} Rd8 {[%emt 0:00:11]} 45. d6 {[%emt 0:00:20]} g4 {[%emt 0:00:32]} 46. Ra6 {[%emt 0:03:22]} g3+ {[%emt 0:01:09]} 47. Kg2 {[%emt 0:00:23]} Rh8 {[%emt 0:00:28]} 48. Ra5 {[%emt 0:01:00]} Rh2+ {[%emt 0:03:58]} 49. Kg1 {[%emt 0:00:09]} Rc2 {[%emt 0:00:05]} 50. d7 {[%emt 0:00:49]} Rc1+ {[%emt 0:00:12]} 51. Kg2 {[%emt 0:00:06]} Rc2+ {[%emt 0:00:09]} 52. Kf1 {[%emt 0:00:09]} Rc1+ {[%emt 0:02:06]} 53. Kg2 {[%emt 0:02:30]} Rc2+ {[%emt 0:00:02]} 54. Kg1 {[%emt 0:00:06]} Rc1+ {[%emt 0:00:02]} 1/2-1/2

[Event "POR-chT 1st League 2017"]
[Site "Leiria"]
[Date "2017.07.19"]
[Round "4"]
[White "Pinheiro, Albano"]
[Black "Lombaers, Peter"]
[Result "0-1"]
[ECO "B22"]
[WhiteElo "2071"]
[BlackElo "2327"]
[Annotator "NA"]
[PlyCount "64"]
[EventDate "2017.??.??"]
[EventType "team-tourn"]
[EventCountry "POR"]
[SourceTitle "playchess.com"]
[Source "ChessBase"]
[SourceQuality "1"]
[TimeControl "5400+30"]

1. e4 {[%emt 0:00:28]} c5 {[%emt 0:00:06]} 2. c3 {[%emt 0:00:26]} Nf6 {[%emt 0:00:06]} 3. e5 {[%emt 0:00:11]} Nd5 {[%emt 0:00:06]} 4. Nf3 {[%emt 0:00:07]} e6 $11 {[%emt 0:00:07]} 5. d4 {[%emt 0:00:21]} cxd4 {[%emt 0:00:05]} 6. cxd4 {[%emt 0:00:05]} d6 {[%emt 0:00:04]} 7. Bc4 {[%emt 0:01:29]} Be7 {[%emt 0:00:08]} 8. O-O {[%emt 0:00:09]} O-O {[%emt 0:00:08]} 9. Nc3 {[%emt 0:00:13]} Nxc3 {[%emt 0:00:52]} 10. bxc3 {[%emt 0:00:05]} Qc7 {[%emt 0:01:37]} 11. Qe2 {[%emt 0:00:52]} d5 {[%emt 0:06:51]} 12. Bd3 {[%emt 0:03:04]} Qxc3 {[%emt 0:00:15]} 13. Bd2 {[%emt 0:01:32]} Qa3 {[%emt 0:01:39]} 14. Rfb1 {[%emt 0:05:48]} b6 {[%emt 0:06:45]} 15. Rb3 {[%emt 0:06:55]} Qa4 {[%emt 0:00:11]} 16. Bxh7+ {[%emt 0:19:37]} Kxh7 {[%emt 0:00:15]} 17. Ng5+ {[%emt 0:00:12]} Bxg5 {[%emt 0:00:07]} 18. Qh5+ {[%emt 0:04:08]} Kg8 {[%emt 0:00:05]} 19. Bxg5 {[%emt 0:05:31]} Qxd4 {[%emt 0:17:30]} 20. Re1 {[%emt 0:00:34]} f6 {[%emt 0:00:45]} 21. exf6 {[%emt 0:07:30]} Nd7 {[%emt 0:06:16]} 22. Rh3 {[%emt 0:18:03]} Nxf6 {[%emt 0:02:19]} 23. Bxf6 {[%emt 0:09:46]} Rxf6 {[%emt 0:00:22]} 24. Qe8+ {[%emt 0:05:01]} Rf8 {[%emt 0:00:07]} 25. Rh8+ {[%emt 0:00:10]} Kxh8 {[%emt 0:00:05]} 26. Qxf8+ {[%emt 0:00:03]} Kh7 {[%emt 0:00:05]} 27. Qe8 {[%emt 0:01:47]} Qd2 {[%emt 0:05:48]} 28. Rb1 {[%emt 0:02:28]} Bb7 {[%emt 0:06:13]} 29. Qe7 {[%emt 0:03:50]} Rc8 {[%emt 0:01:09]} 30. h3 {[%emt 0:00:57]} Rc1+ {[%emt 0:00:39]} 31. Rxc1 {[%emt 0:00:01]} Qxc1+ {[%emt 0:00:06]} 32. Kh2 {[%emt 0:00:04]} Qc8 {[%emt 0:00:05]} 0-1

[Event "POR-chT 1st League 2017"]
[Site "Leiria"]
[Date "2017.07.20"]
[Round "5"]
[White "Medarde Santiago, Luis Marcos"]
[Black "Vasques, Antonio Pedro Freix"]
[Result "1-0"]
[ECO "B91"]
[WhiteElo "2354"]
[BlackElo "2307"]
[Annotator "NA"]
[PlyCount "59"]
[EventDate "2017.??.??"]
[EventType "team-tourn"]
[EventCountry "POR"]
[SourceTitle "playchess.com"]
[Source "ChessBase"]
[SourceQuality "1"]
[TimeControl "5400+30"]

1. e4 {[%emt 0:00:00]} c5 {[%emt 0:08:18]} 2. Nf3 {[%emt 0:00:13]} d6 {[%emt 0:00:18]} 3. d4 {[%emt 0:00:43]} cxd4 {[%emt 0:00:11]} 4. Nxd4 {[%emt 0:00:03]} Nf6 {[%emt 0:00:06]} 5. Nc3 {[%emt 0:00:11]} a6 {[%emt 0:00:04]} 6. g3 {[%emt 0:02:05]} g6 {[%emt 0:03:26]} 7. Bg2 {[%emt 0:00:16]} Bg7 {[%emt 0:00:06]} 8. O-O {[%emt 0:00:16]} O-O {[%emt 0:00:09]} 9. h3 {[%emt 0:04:19]} Nc6 {[%emt 0:03:20]} 10. Nde2 {[%emt 0:00:02]} Bd7 {[%emt 0:06:38]} 11. Nd5 {[%emt 0:02:13]} Nxd5 {[%emt 0:05:19]} 12. exd5 {[%emt 0:00:02]} Ne5 {[%emt 0:00:11]} 13. Nd4 {[%emt 0:10:20]} Qb6 {[%emt 0:32:15] B70: Sicilian Dragon: 6 g3 and 6 Be2 (without a later Be3)} (13... Rc8 14. b3 Be8 15. c4 b5 16. f4 Nd7 17. Be3 Nc5 18. cxb5 axb5 19. Qd2 Rb8 20. Rac1 b4 21. Rc4 {½-½ (62) Spangenberg,H (2510)-Zapata,A (2565) Matanzas 1994}) 14. c3 {[%emt 0:00:01]} Bb5 $146 {[%emt 0:04:54]} ({Predecessor:} 14... Rac8 15. Kh2 Rfe8 16. f4 Nc4 17. b3 Na5 18. Bd2 e6 19. dxe6 fxe6 20. Rc1 Nc6 21. Nf3 {½-½ (34) Bronstein,D-Boleslavsky,I Moscow 1944}) 15. Nxb5 {[%emt 0:04:14]} Qxb5 {[%emt 0:01:24]} 16. Re1 {[%emt 0:01:48]} Rfe8 {[%emt 0:04:30]} 17. a4 {[%emt 0:14:18]} Qd3 {[%emt 0:08:10]} 18. Qb3 {[%emt 0:13:32]} b5 {[%emt 0:04:23]} 19. Re3 {[%emt 0:16:43]} Qc4 {[%emt 0:00:58]} 20. Qxc4 {[%emt 0:00:55]} Nxc4 {[%emt 0:00:58]} 21. Re2 {[%emt 0:00:01]} Bf6 {[%emt 0:00:16]} 22. g4 {[%emt 0:00:10]} b4 {[%emt 0:03:51]} 23. cxb4 {[%emt 0:05:52]} Rab8 {[%emt 0:00:04]} 24. Rc2 {[%emt 0:03:10]} (24. Bf1 $16) 24... Rxb4 {[%emt 0:02:05]} 25. Bf1 $11 {[%emt 0:00:01]} Nb6 {[%emt 0:01:00]} 26. Bxa6 {[%emt 0:04:07]} Nxa4 {[%emt 0:00:41]} 27. Rxa4 Rxa4 {[%emt 0:00:01]} 28. Bb5 {[%emt 0:02:41]} Raa8 {[%emt 0:00:08]} 29. Bxe8 Rxe8 {[%emt 0:00:01]} 30. b4 {[%emt 0:04:20]} 1-0

[Event "POR-chT 1st League 2017"]
[Site "Leiria"]
[Date "2017.07.20"]
[Round "5"]
[White "Lombaers, Peter"]
[Black "Andrade, Jose M Vieira"]
[Result "1-0"]
[ECO "E48"]
[WhiteElo "2327"]
[BlackElo "2223"]
[Annotator "NA"]
[PlyCount "65"]
[EventDate "2017.??.??"]
[EventType "team-tourn"]
[EventCountry "POR"]
[SourceTitle "playchess.com"]
[Source "ChessBase"]
[SourceQuality "1"]
[TimeControl "5400+30"]

1. d4 {[%emt 0:00:00]} Nf6 {[%emt 0:02:27]} 2. c4 {[%emt 0:00:00]} e6 {[%emt 0:00:08]} 3. Nc3 {[%emt 0:00:00]} Bb4 {[%emt 0:00:13]} 4. e3 {[%emt 0:00:00]} O-O {[%emt 0:00:50]} 5. Bd3 {[%emt 0:00:00]} d5 {[%emt 0:00:08]} 6. cxd5 {[%emt 0:00:00]} exd5 {[%emt 0:00:30]} 7. Nge2 {[%emt 0:00:03]} Bd6 {[%emt 0:02:53]} 8. O-O {[%emt 0:01:18] E48: Nimzo-Indian: Rubinstein: 5 Bd3 d5 including 6 Ne2, but excluding 6 a3} (8. Nb5 Be7 9. Bd2 a6 10. Nbc3 c5 11. dxc5 Bxc5 12. Nd4 Bxd4 13. exd4 Qb6 14. O-O Qxd4 15. Bg5 Nc6 16. Bxf6 Qxf6 17. Nxd5 Qxb2 {½-½ (92) Harikrishna,P (2750)-Hammer,J (2621) Moscow 2017}) 8... a6 {[%emt 0:07:15]} 9. f3 {[%emt 0:02:43]} c5 {[%emt 0:00:57]} 10. Qe1 {[%emt 0:01:06]} Nc6 {[%emt 0:01:22]} 11. Qh4 {[%emt 0:03:30]} Ne7 {[%emt 0:05:24]} 12. dxc5 $146 {[%emt 0:22:38]} ({Predecessor:} 12. g4 Ng6 13. Qf2 b5 14. g5 Nd7 15. f4 f5 16. gxf6 Nxf6 {0-1 (52) Pedersen,N (2300)-Iordachescu,V (2500) Zagan 1997}) 12... Bxc5 {[%emt 0:00:21]} 13. Nd4 {[%emt 0:00:21]} Re8 {[%emt 0:13:47]} 14. Bd2 {[%emt 0:05:32]} Bd7 {[%emt 0:04:23]} 15. Rfe1 {[%emt 0:07:34]} Rc8 {[%emt 0:00:45]} 16. Nce2 {[%emt 0:01:51]} Ng6 {[%emt 0:04:30]} 17. Qf2 {[%emt 0:00:28]} Ne5 {[%emt 0:00:30]} 18. Nf4 {[%emt 0:24:22]} a5 {[%emt 0:35:15]} 19. Bf1 {[%emt 0:03:17]} Qb6 {[%emt 0:04:20]} 20. Nb3 {[%emt 0:04:29]} Bb4 {[%emt 0:01:10]} 21. Bxb4 {[%emt 0:00:20]} Qxb4 {[%emt 0:00:14]} 22. Rad1 {[%emt 0:01:32]} a4 {[%emt 0:04:33]} 23. Nd4 {[%emt 0:00:23]} Qb6 {[%emt 0:02:00]} 24. Nd3 {[%emt 0:06:41]} Nc4 {[%emt 0:01:21]} 25. b3 {[%emt 0:00:34]} axb3 {[%emt 0:00:46]} 26. axb3 {[%emt 0:00:04]} Nd6 {[%emt 0:01:39]} 27. Nf4 {[%emt 0:00:11]} Rc3 {[%emt 0:01:29]} 28. Bd3 {[%emt 0:02:43]} Bb5 {[%emt 0:01:22]} 29. Qd2 {[%emt 0:01:21]} Rc5 {[%emt 0:01:38]} 30. Qb4 {[%emt 0:01:30]} Rec8 {[%emt 0:00:46]} (30... g5 {was necessary.}) 31. Bxb5 {[%emt 0:01:13]} Nxb5 {[%emt 0:02:22]} 32. Nd3 {[%emt 0:00:05]} Nd7 {[%emt 0:00:39]} 33. Nxc5 $18 {[%emt 0:01:22]} 1-0

[Event "POR-chT 1st League 2017"]
[Site "Leiria"]
[Date "2017.07.20"]
[Round "5"]
[White "Figuero Toro, Julian Francisco"]
[Black "Diogo, Vasco"]
[Result "1/2-1/2"]
[ECO "E90"]
[WhiteElo "2314"]
[BlackElo "2213"]
[Annotator "ChessBase"]
[PlyCount "96"]
[EventDate "2017.??.??"]
[EventType "team-tourn"]
[EventCountry "POR"]
[SourceTitle "playchess.com"]
[Source "ChessBase"]
[SourceQuality "1"]
[TimeControl "5400+30"]

1. d4 {[%emt 0:00:00]} Nf6 {[%emt 0:00:09]} 2. c4 {[%emt 0:00:06]} g6 {[%emt 0:00:06]} 3. Nc3 {[%emt 0:00:08]} Bg7 {[%emt 0:00:06]} 4. e4 {[%emt 0:02:04]} d6 {[%emt 0:00:07]} 5. Nf3 {[%emt 0:00:11]} O-O {[%emt 0:00:08]} 6. h3 {[%emt 0:00:12]} e5 {[%emt 0:00:59]} 7. d5 {[%emt 0:00:05]} Nbd7 {[%emt 0:03:06]} 8. Be3 {[%emt 0:04:42]} Nc5 {[%emt 0:03:34]} 9. Nd2 {[%emt 0:00:48]} a5 {[%emt 0:00:56]} 10. g4 {[%emt 0:01:11]} Bd7 {[%emt 0:02:30]} 11. Be2 {[%emt 0:03:15]} a4 {[%emt 0:05:30]} 12. a3 {[%emt 0:21:05]} Ne8 {[%emt 0:07:31]} 13. h4 {[%emt 0:07:46]} f5 {[%emt 0:06:22]} 14. g5 {[%emt 0:03:08]} f4 {[%emt 0:08:43]} 15. Bxc5 {[%emt 0:00:10]} dxc5 {[%emt 0:00:03]} 16. f3 {[%emt 0:06:49]} Nd6 {[%emt 0:00:44]} 17. Bd3 {[%emt 0:01:31]} h6 {[%emt 0:22:59]} 18. gxh6 {[%emt 0:06:16]} Bf6 {[%emt 0:05:30]} 19. Ke2 Kh7 20. Qg1 {[%emt 0:04:46]} b6 {[%emt 0:00:39]} 21. Qf2 {[%emt 0:01:36]} Rg8 {[%emt 0:01:03]} 22. Rag1 {[%emt 0:00:59]} Rb8 {[%emt 0:03:47]} 23. Bc2 {[%emt 0:07:52]} b5 {[%emt 0:05:23]} 24. cxb5 {[%emt 0:11:29]} Bxb5+ {[%emt 0:01:38]} 25. Kd1 {[%emt 0:00:43]} Bd7 {[%emt 0:02:15]} 26. Kc1 {[%emt 0:01:25]} Ra8 {[%emt 0:03:18]} 27. Bd3 {[%emt 0:00:41]} Qe7 {[%emt 0:04:21]} 28. Rg2 {[%emt 0:02:04]} Rab8 {[%emt 0:00:13]} 29. Rgh2 {[%emt 0:05:46]} Nf7 {[%emt 0:01:16]} 30. Nc4 {[%emt 0:01:56]} Kxh6 {[%emt 0:02:17]} 31. Qc2 {[%emt 0:00:48]} Ra8 {[%emt 0:01:07]} 32. Qf2 {[%emt 0:00:23]} Qd8 {[%emt 0:01:16]} 33. Qxc5 {[%emt 0:01:51]} Be7 {[%emt 0:00:05]} 34. Qf2 {[%emt 0:00:25]} Qb8 {[%emt 0:01:13]} 35. d6 {[%emt 0:00:40]} Bxd6 {[%emt 0:01:46]} 36. Nd5 {[%emt 0:01:20]} Be6 {[%emt 0:00:44]} 37. Rg2 {[%emt 0:00:43]} Qb3 {[%emt 0:01:04]} 38. Qc2 {[%emt 0:00:40]} Rab8 {[%emt 0:00:22]} 39. Na5 {[%emt 0:00:58]} Qa2 {[%emt 0:01:13]} 40. Bc4 {[%emt 0:01:09]} Qa1+ {[%emt 0:00:12]} 41. Qb1 {[%emt 0:00:05]} Qxb1+ {[%emt 0:00:09]} 42. Kxb1 {[%emt 0:00:01]} Nd8 {[%emt 0:01:55]} 43. Rc1 {[%emt 0:02:00]} Rf8 {[%emt 0:00:34]} 44. Rcg1 {[%emt 0:00:25]} Rg8 {[%emt 0:00:26]} 45. Nf6 {[%emt 0:00:18]} Rg7 {[%emt 0:00:26]} 46. Ne8 {[%emt 0:00:17]} Rg8 {[%emt 0:00:21]} 47. Nf6 {[%emt 0:00:07]} Rg7 {[%emt 0:01:15]} 48. Ne8 {[%emt 0:00:10]} Rg8 {[%emt 0:01:44]} 1/2-1/2

[Event "POR-chT 1st League 2017"]
[Site "Leiria"]
[Date "2017.07.20"]
[Round "5"]
[White "Padeiro, Jose"]
[Black "Reis, Luis Sousa"]
[Result "1/2-1/2"]
[ECO "D08"]
[WhiteElo "2276"]
[BlackElo "2182"]
[Annotator "ChessBase"]
[PlyCount "53"]
[EventDate "2017.??.??"]
[EventType "team-tourn"]
[EventCountry "POR"]
[SourceTitle "playchess.com"]
[Source "ChessBase"]
[SourceQuality "1"]
[TimeControl "5400+30"]

1. d4 d5 2. c4 e5 3. dxe5 d4 4. a3 Nc6 5. e3 Nge7 6. Be2 Bf5 7. g4 Be4 8. Bf3 Bxf3 9. Nxf3 dxe3 10. Qxd8+ Rxd8 11. Bxe3 Ng6 12. e6 fxe6 13. Nbd2 Be7 14. Ng5 Bxg5 15. Bxg5 Rd4 16. h3 Nf4 17. Bxf4 Rxf4 18. O-O Rd4 19. Nf3 Rxc4 20. Ng5 Ke7 21. Rae1 Nd4 22. Re3 h6 23. Ne4 Nc2 24. Re2 Nd4 25. Re3 Nc2 26. Re2 Nd4 27. Re3 1/2-1/2

[Event "POR-chT 1st League 2017"]
[Site "Leiria"]
[Date "2017.07.20"]
[Round "5"]
[White "Maisuradze, Nino"]
[Black "Pinheiro, Albano"]
[Result "1-0"]
[ECO "A46"]
[WhiteElo "2266"]
[BlackElo "2071"]
[Annotator "NA"]
[PlyCount "79"]
[EventDate "2017.??.??"]
[EventType "team-tourn"]
[EventCountry "POR"]
[SourceTitle "playchess.com"]
[Source "ChessBase"]
[SourceQuality "1"]
[TimeControl "5400+30"]

1. d4 {[%emt 0:00:00]} Nf6 {[%emt 0:03:39]} 2. Nf3 {[%emt 0:00:00]} e6 {[%emt 0:00:07]} 3. Bf4 {[%emt 0:00:00]} b6 {[%emt 0:00:06]} 4. e3 {[%emt 0:00:00]} Bb7 {[%emt 0:00:07]} 5. h3 {[%emt 0:00:03]} Be7 {[%emt 0:00:08]} 6. Nbd2 {[%emt 0:00:02]} O-O {[%emt 0:00:09]} 7. Bd3 {[%emt 0:00:06]} c5 {[%emt 0:00:17]} 8. c3 {[%emt 0:00:24]} cxd4 {[%emt 0:00:05] A47: 1 d4 Nf6 2 Nf3 b6: Torre, London and Colle Systems} 9. cxd4 {[%emt 0:06:54]} (9. exd4 d6 10. O-O Nbd7 11. Re1 Re8 12. Bh2 a6 13. a4 Nf8 14. Ng5 Qd7 15. Qe2 Bc6 16. Bxa6 Bxa4 17. Bd3 Bc6 18. Nc4 {1-0 (82) Giri,A (2755)-Tomashevsky,E (2731) Moscow 2016}) 9... Nc6 {[%emt 0:00:29]} 10. a3 {[%emt 0:00:53]} d6 {[%emt 0:00:08]} 11. O-O {[%emt 0:06:41]} Rc8 {[%emt 0:00:34]} 12. Qe2 {[%emt 0:01:18]} Rc7 {[%emt 0:07:27]} 13. Rfd1 {[%emt 0:01:35]} Qd7 {[%emt 0:01:18]} 14. e4 {[%emt 0:01:40]} Rfc8 {[%emt 0:21:31]} 15. Bh2 $146 {[%emt 0:20:46]} ({Predecessor:} 15. b4 Qd8 16. Be3 Nb8 {0-1 (47) Bonnez,F (2335)-Calandri,F (2430) ICCF email 1997}) 15... g6 {[%emt 0:05:48]} 16. e5 {[%emt 0:03:23]} dxe5 {[%emt 0:03:42]} 17. dxe5 {[%emt 0:00:26]} Nd5 {[%emt 0:01:31]} 18. Bb5 {[%emt 0:02:47]} Qd8 {[%emt 0:03:23]} 19. Ne4 {[%emt 0:02:06]} Nb8 {[%emt 0:10:12]} 20. Nd4 {[%emt 0:06:31]} a6 {[%emt 0:05:01]} 21. Ba4 {[%emt 0:01:16]} b5 {[%emt 0:02:55]} 22. Bb3 {[%emt 0:00:13]} Nc6 {[%emt 0:00:38]} 23. Nxc6 {[%emt 0:02:12]} Rxc6 {[%emt 0:03:41]} 24. Bg3 {[%emt 0:03:53]} R6c7 {[%emt 0:04:23]} 25. Nd6 {[%emt 0:09:08]} Bxd6 {[%emt 0:01:36]} 26. exd6 {[%emt 0:00:06]} Rc5 {[%emt 0:04:15]} 27. Kh2 {[%emt 0:02:54]} Qd7 {[%emt 0:05:17]} 28. a4 {[%emt 0:03:58]} b4 {[%emt 0:01:26]} 29. Rd4 {[%emt 0:03:15]} ({Better is} 29. Bxd5 $16 exd5 30. Re1) 29... Qc6 {[%emt 0:03:20]} 30. f3 {[%emt 0:00:53]} a5 $2 {[%emt 0:00:23]} (30... Qd7 $16) 31. Rad1 $2 {[%emt 0:00:37]} (31. Bxd5 $18 Rxd5 32. Rxd5 Qxd5 33. Rd1) 31... Qd7 {[%emt 0:01:02]} 32. Be5 {[%emt 0:02:13]} Nb6 $1 {[%emt 0:01:46]} 33. Qe3 {[%emt 0:00:51]} (33. Bf6 $1 $14) 33... Nc4 {[%emt 0:02:58]} 34. Bxc4 {[%emt 0:00:16]} Rxc4 {[%emt 0:00:00]} 35. Rxc4 {[%emt 0:03:38]} Rxc4 {[%emt 0:00:03]} 36. Bf6 {[%emt 0:03:12]} Bd5 {[%emt 0:01:28]} 37. Rxd5 {[%emt 0:00:42]} exd5 {[%emt 0:01:01]} 38. Qe7 {[%emt 0:00:06]} Qxe7 {[%emt 0:04:00]} 39. Bxe7 {[%emt 0:00:03]} Rc8 $18 {[%emt 0:01:33]} 40. d7 {[%emt 0:00:11]} 1-0

[Event "POR-chT 1st League 2017"]
[Site "Leiria"]
[Date "2017.07.20"]
[Round "5"]
[White "Santos, Antonio P"]
[Black "Rocha, Sergio"]
[Result "0-1"]
[ECO "E91"]
[WhiteElo "2237"]
[BlackElo "2364"]
[Annotator "NA"]
[PlyCount "56"]
[EventDate "2017.??.??"]
[EventType "team-tourn"]
[EventCountry "POR"]
[SourceTitle "playchess.com"]
[Source "ChessBase"]
[SourceQuality "1"]
[TimeControl "5400+30"]

1. d4 {[%emt 0:18:30]} d6 {[%emt 0:00:13]} 2. c4 {[%emt 0:00:40]} Nf6 {[%emt 0:00:11]} 3. Nc3 {[%emt 0:00:11]} g6 {[%emt 0:00:06]} 4. e4 {[%emt 0:00:12]} Bg7 {[%emt 0:00:05]} 5. Be2 {[%emt 0:00:25]} O-O {[%emt 0:00:06]} 6. Nf3 {[%emt 0:00:25]} c6 {[%emt 0:00:08]} 7. O-O {[%emt 0:00:10]} a6 {[%emt 0:00:04]} 8. Qc2 {[%emt 0:03:44]} b5 {[%emt 0:00:23] E91: King's Indian: Classical: 6 Be2, unusual replies including 6...c5 and 6...Bg4} (8... Bg4 9. Be3 Nbd7 10. h3 Bxf3 11. Bxf3 e5 12. d5 c5 13. a3 Rc8 14. Be2 Kh8 15. b4 Ng8 16. Qd2 {½-½ (32) Rojicek,V (2433)-Petenyi,T (2445) Slovakia 2015}) 9. b4 {[%emt 0:00:02]} Be6 $146 {[%emt 0:07:37]} ({Predecessor:} 9... Bg4 10. Bb2 Bxf3 11. Bxf3 bxc4 12. Ne2 d5 13. e5 Ne8 14. Rab1 Nc7 15. a4 e6 16. Ba3 {0-1 (32) Krueger,I-Buschmann,A Dortmund 1999}) 10. d5 {[%emt 0:25:52]} Bg4 {[%emt 0:00:58]} 11. Be3 {[%emt 0:15:39]} bxc4 {[%emt 0:01:40]} 12. Nd4 {[%emt 0:02:41]} a5 {[%emt 0:04:09]} (12... Bxe2 $15 13. Qxe2 cxd5 14. exd5 Qc7) 13. dxc6 {[%emt 0:17:39]} axb4 {[%emt 0:01:22]} 14. Ncb5 {[%emt 0:00:07]} Bxe2 {[%emt 0:11:09]} 15. c7 {[%emt 0:00:53]} Qd7 {[%emt 0:00:52]} 16. Qxe2 {[%emt 0:00:02]} e5 {[%emt 0:08:37]} 17. Qxc4 {[%emt 0:04:47]} exd4 {[%emt 0:00:47]} 18. cxb8=Q {[%emt 0:00:04]} Rfxb8 {[%emt 0:01:56]} 19. Nxd4 {[%emt 0:00:09]} Nxe4 {[%emt 0:00:34]} 20. Nc6 {[%emt 0:06:49]} Rc8 {[%emt 0:09:57]} 21. Qxe4 {[%emt 0:00:25]} Qxc6 {[%emt 0:00:14]} 22. Qxc6 {[%emt 0:00:10]} Rxc6 {[%emt 0:00:06]} 23. Rac1 {[%emt 0:01:09]} Bc3 {[%emt 0:00:25]} 24. Rc2 {[%emt 0:00:18]} Rca6 $19 {[%emt 0:00:38]} 25. Bf4 {[%emt 0:00:31]} Rxa2 {[%emt 0:04:12]} 26. Rcc1 {[%emt 0:00:23]} d5 {[%emt 0:00:45]} 27. Rfd1 {[%emt 0:00:34]} d4 {[%emt 0:00:18]} 28. Rb1 {[%emt 0:00:08]} Ra1 {[%emt 0:01:00]} 0-1